bitfinex-derivatives/quotes_ETHF0:USTF0_20250331
["timestamp","ask_amount","ask_price","bid_price","bid_amount"]
[1743455935580,1.09584,1825.4,1825.3,43.687]
[1743455935875,1.09584,1825.4,1825.3,44.7829]
[1743455936069,1.09584,1825.4,1825.3,43.687]
[1743455936265,1.09584,1825.4,1825.3,44.7829]
[1743455938573,1.09584,1825.4,1825.3,43.687]
[1743455938771,1.09584,1825.4,1825.3,44.7829]
[1743455939164,1.09584,1825.4,1825.3,43.687]
[1743455939365,1.09584,1825.4,1825.3,44.7829]
[1743455942173,1.10403479,1825.5,1825.4,1.09584]
[1743455942362,1.10403479,1825.5,1825.4,2.54044]
[1743455942770,1.10403479,1825.5,1825.4,43.34044]
[1743455943781,0.00820479,1825.5,1825.4,46.54824]
[1743455945775,1.09562,1825.8,1825.7,1.09566]
[1743455946381,1.09562,1825.8,1825.7,44.02006]
[1743455947479,1.09562,1825.8,1825.7,44.70846]
[1743455948473,6.21859479,1825.9,1825.8,1.0956]
[1743455948674,6.21859479,1825.9,1825.8,2.5704]
[1743455949177,6.21859479,1825.9,1825.8,43.3704]
[1743455949480,2.58359479,1825.9,1825.8,43.3704]
[1743455950982,0.00820479,1825.9,1825.8,46.5782]
[1743455951879,1.09539,1826.2,1826.1,1.09542]
[1743455952075,1.09539,1826.2,1825.9,2.73872]
[1743455952076,3.2078,1826.4,1826.0,5.94638]
[1743455952278,6.17542,1826.6,1826.5,1.09514]
[1743455952571,1.4453,1826.6,1826.5,41.89514]
[1743455952776,0.7153,1826.8,1826.7,1.09506]
[1743455953083,2.1606,1826.8,1826.7,1.09506]
[1743455953273,3.2556,1826.8,1826.7,1.09506]
[1743455953475,4.72996,1826.9,1826.8,1.095]
[1743455953772,4.72996,1826.9,1826.8,41.895]
[1743455954277,4.72996,1826.9,1826.8,40.8]
[1743455954879,4.72996,1826.9,1826.8,42.2208]
[1743455955571,5.0803,1827.0,1826.8,43.31578]
[1743455955876,6.17522,1827.0,1826.8,43.31578]
[1743455956079,1.3804,1826.9,1826.8,43.31578]
[1743455956884,2.47534,1826.9,1826.8,42.2208]
[1743455959073,2.47534,1826.9,1826.8,40.8]
[1743455959273,3.15374,1826.9,1826.8,40.8]
[1743455963186,6.36154,1826.9,1826.8,40.8]
[1743455976303,1.09518,1826.5,1826.4,0.72890479]
[1743455976607,1.09518,1826.5,1826.4,0.00820479]
[1743455976608,4.72718,1826.5,1826.4,0.00820479]
[1743455976799,7.93498,1826.5,1826.4,0.00820479]
[1743455977004,1.09536,1826.2,1826.1,2.8452]
[1743455977412,1.09536,1826.2,1826.1,43.6452]
[1743455978312,0.00820479,1826.3,1826.2,1.09536]
[1743455978507,0.00820479,1826.3,1826.2,2.48496]
[1743455978907,0.00820479,1826.3,1826.2,43.28496]
[1743455979412,1.10350479,1826.3,1826.2,43.95337476]
[1743455979915,1.10350479,1826.3,1826.2,42.85801476]
[1743455980608,1.10350479,1826.3,1826.2,42.1896]
[1743455980809,2.53650479,1826.3,1826.2,42.1896]
[1743455981312,1.10350479,1826.3,1826.2,42.1896]
[1743455981710,1.10350479,1826.3,1826.2,42.85881347]
[1743455982812,1.10350479,1826.3,1826.2,42.1896]
[1743455985413,1.10350479,1826.3,1826.2,43.28496]
[1743455986020,1.10350479,1826.3,1826.2,43.95384694]
[1743455991423,1.10350479,1826.3,1826.2,47.16164694]
[1743455994229,0.00820479,1826.3,1826.2,47.16164694]
[1743455996525,1.10350479,1826.3,1826.2,47.16164694]
[1743455997524,0.00820479,1826.3,1826.2,47.16164694]
[1743455998227,0.00820479,1826.3,1826.2,47.90813706]
[1743455998726,0.00820479,1826.3,1826.2,47.16164694]
[1743455999328,0.00820479,1826.3,1826.2,47.90817856]
[1743456000226,1.10350479,1826.3,1826.2,47.90817856]
[1743456000428,1.10350479,1826.3,1826.2,47.16164694]
[1743456000729,0.00820479,1826.3,1826.2,47.16164694]
[1743456002025,1.10350479,1826.3,1826.2,47.16164694]
[1743456002420,2.55250479,1826.3,1826.2,47.16164694]
[1743456003322,2.55250479,1826.3,1826.2,47.90869002]
[1743456003928,2.55250479,1826.3,1826.2,47.90869]
[1743456005328,2.55250479,1826.3,1826.2,44.70089]
[1743456005527,2.55250479,1826.3,1826.2,47.90869]
[1743456006536,3.23840479,1826.3,1826.2,47.90869]
[1743456007736,3.23840479,1826.3,1826.2,47.90951055]
[1743456009632,3.23840479,1826.3,1826.2,47.90967116]
[1743456010130,3.23840479,1826.3,1826.2,47.90967647]
[1743456011638,3.23840479,1826.3,1826.2,47.90972764]
[1743456014135,3.23840479,1826.3,1826.2,41.46888694]
[1743456016434,3.23840479,1826.3,1826.2,40.8]
[1743456016834,8.94620479,1826.3,1826.2,40.8]
[1743456017040,1.09542,1826.1,1826.0,0.00820479]
[1743456017238,4.72642,1826.1,1826.0,0.00820479]
[1743456017740,9.42012,1826.1,1826.0,0.00820479]
[1743456017936,9.42012,1826.1,1826.0,40.80820479]
[1743456018639,11.92012,1826.1,1826.0,40.80820479]
[1743456021044,2.73886,1825.9,1825.3,4.6386]
[1743456021239,1.09584,1825.4,1825.3,1.4308]
[1743456021843,1.09584,1825.4,1825.3,42.2308]
[1743456022437,2.56414,1825.4,1825.3,43.6295]
[1743456025553,2.56414,1825.4,1825.3,42.1987]
[1743456025847,3.29944,1825.4,1825.3,40.8]
[1743456034454,3.29944,1825.4,1825.3,42.2899]
[1743456046871,2.56414,1825.4,1825.3,42.2899]
[1743456047069,2.56414,1825.4,1825.3,43.0381]
[1743456051967,2.56414,1825.4,1825.3,42.2899]
[1743456061283,5.77194,1825.4,1825.3,42.2899]
[1743456066082,2.56414,1825.4,1825.3,42.2899]
[1743456066282,5.77194,1825.4,1825.3,42.2899]
[1743456071089,2.56414,1825.4,1825.3,42.2899]
[1743456071586,5.77194,1825.4,1825.3,42.2899]
[1743456074995,5.77194,1825.4,1825.3,42.9753]
[1743456079794,4.30364,1825.4,1825.3,42.9753]
[1743456079995,4.30364,1825.4,1825.3,46.14281797]
[1743456079996,3.629,1825.4,1825.3,46.14281797]
[1743456080201,4.72484,1825.4,1825.3,46.14281797]
[1743456080393,4.72484,1825.4,1825.3,46.89147304]
[1743456080697,4.72484,1825.4,1825.3,43.64281797]
[1743456083595,4.72484,1825.4,1825.3,42.9753]
[1743456092710,1.09584,1825.4,1825.3,42.9753]
[1743456092906,4.72384,1825.4,1825.3,42.9753]
[1743456093504,4.72384,1825.4,1825.3,43.64157321]
[1743456093808,4.72384,1825.4,1825.3,42.9753]
[1743456094415,4.72384,1825.4,1825.3,44.0712]
[1743456094416,1.09584,1825.4,1825.3,44.0712]
[1743456094613,4.72384,1825.4,1825.3,42.9753]
[1743456095108,1.09584,1825.4,1825.3,43.64150102]
[1743456095309,4.72384,1825.4,1825.3,43.64150102]
[1743456096213,4.72284,1825.4,1825.3,43.64150102]
[1743456096612,4.72284,1825.4,1825.3,44.73740102]
[1743456098308,1.09584,1825.4,1825.3,44.73740102]
[1743456099212,4.7228,1825.6,1825.5,1.09574]
[1743456099610,4.7228,1825.6,1825.5,1.76194102]
[1743456099810,4.7228,1825.6,1825.5,44.03584102]
[1743456100916,1.0958,1825.6,1825.5,44.03584102]
[1743456101813,1.09568,1825.7,1825.6,1.09572]
[1743456102011,1.09568,1825.7,1825.6,3.33742]
[1743456102412,1.09568,1825.7,1825.6,44.13742]
[1743456105921,4.72164,1825.8,1825.7,1.09566]
[1743456106223,4.72164,1825.8,1825.7,3.26316]
[1743456106924,4.72164,1825.8,1825.7,44.06316]
[1743456107523,1.09564,1825.8,1825.7,44.06316]
[1743456107924,4.91212,1826.0,1825.9,1.09547]
[1743456107925,4.72154,1826.0,1825.9,1.09547]
[1743456108528,4.72154,1826.0,1825.9,43.37617]
[1743456108924,4.72154,1826.0,1825.9,40.8]
[1743456109222,6.19244,1826.0,1825.9,40.8]
[1743456110924,6.19244,1826.0,1825.9,41.4809]
[1743456111529,5.0969,1826.0,1825.9,42.57644]
[1743456112127,5.0969,1826.0,1825.9,44.05104]
[1743456113126,6.19238,1826.0,1825.9,44.05104]
[1743456114225,2.56638,1826.0,1825.9,44.05104]
[1743456114425,1.09548,1826.0,1825.9,44.05104]
[1743456115626,1.81896,1826.1,1826.0,1.09548]
[1743456115829,1.09546,1826.1,1826.0,3.34008]
[1743456116024,1.09546,1826.1,1826.0,6.54788]
[1743456116222,1.09546,1826.1,1826.0,47.34788]
[1743456119225,5.76900479,1826.3,1826.0,47.34788]
[1743456119429,6.86433479,1826.3,1826.2,1.09536]
[1743456119827,3.23933479,1826.3,1826.2,1.79476]
[1743456120030,3.23933479,1826.3,1826.2,42.59476]
[1743456120230,3.23933479,1826.3,1826.2,41.4994]
[1743456120427,3.23933479,1826.3,1826.2,40.8]
[1743456120627,3.23933479,1826.3,1826.2,42.2648]
[1743456120822,3.23933479,1826.3,1826.2,40.8]
[1743456124930,3.23933479,1826.3,1826.2,41.89536]
[1743456125234,2.14400479,1826.3,1826.2,41.89536]
[1743456125829,3.23930479,1826.3,1826.2,41.89536]
[1743456126132,6.86330479,1826.3,1826.2,41.89536]
[1743456126732,6.86330479,1826.3,1826.2,40.8]
[1743456127236,6.86330479,1826.3,1826.2,42.2074]
[1743456136940,6.86330479,1826.3,1826.2,40.8]
[1743456137140,9.36330479,1826.3,1826.2,40.8]
[1743456141338,6.86330479,1826.3,1826.2,40.8]
[1743456145752,1.09554,1825.9,1825.8,1.4439]
[1743456146050,4.71754,1825.9,1825.8,1.4439]
[1743456146643,6.82934,1825.9,1825.8,1.4439]
[1743456146843,6.82934,1825.9,1825.8,42.2439]
[1743456155058,6.82934,1825.9,1825.8,40.8]
[1743456156557,1.0956,1825.8,1825.7,1.3876]
[1743456156857,5.7093,1825.8,1825.7,1.3876]
[1743456157455,5.7093,1825.8,1825.7,42.1876]
[1743456163261,4.3034,1825.8,1825.7,42.1876]
[1743456163467,4.7176,1825.8,1825.7,42.1876]
[1743456176470,4.7166,1825.8,1825.7,42.1876]
[1743456180874,4.7156,1825.8,1825.7,42.1876]
[1743456186773,1.0956,1825.8,1825.7,43.28326]
[1743456186976,1.09554,1826.0,1825.9,1.09551]
[1743456187373,4.71547,1826.1,1826.0,1.09548]
[1743456187568,4.71547,1826.1,1826.0,41.89548]
[1743456187769,1.09547,1826.1,1826.0,41.89548]
[1743456187976,1.09547,1826.1,1826.0,46.48728]
[1743456188173,1.09547,1826.1,1826.0,47.90087088]
[1743456188377,1.09547,1826.1,1826.0,47.1538016]
[1743456191682,4.71538,1826.2,1826.1,1.09542]
[1743456191884,4.71538,1826.2,1826.1,3.18142]
[1743456192383,4.71538,1826.2,1826.1,43.98142]
[1743456193176,3.62,1826.2,1826.1,43.98142]
[1743456194582,1.10354479,1826.3,1826.2,1.09536]
[1743456194782,1.10354479,1826.3,1826.2,2.46836]
[1743456194984,1.10354479,1826.3,1826.2,3.20056]
[1743456195171,1.10354479,1826.3,1826.2,44.00056]
[1743456195371,0.00820479,1826.3,1826.2,44.00056]
[1743456195678,0.00820479,1826.3,1826.2,47.20836]
[1743456196082,0.00820479,1826.3,1826.2,47.87277272]
[1743456199184,1.10350479,1826.3,1826.2,47.87277272]
[1743456199483,1.10350479,1826.3,1826.2,47.20836]
[1743456199679,0.00820479,1826.3,1826.2,47.20836]
[1743456202385,0.00820479,1826.3,1826.2,44.00056]
[1743456202676,0.00820479,1826.3,1826.2,47.20836]
[1743456202883,1.10350479,1826.3,1826.2,47.20836]
[1743456203772,0.00820479,1826.3,1826.2,47.20836]
[1743456204483,1.10350479,1826.3,1826.2,47.20836]
[1743456205685,0.00820479,1826.3,1826.2,47.20836]
[1743456206379,1.10350479,1826.3,1826.2,47.20836]
[1743456206585,0.00820479,1826.3,1826.2,47.20836]
[1743456207287,0.00820479,1826.3,1826.2,44.00056]
[1743456207690,1.10350479,1826.3,1826.2,47.20836]
[1743456208186,0.00820479,1826.3,1826.2,47.20836]
[1743456208888,1.10350479,1826.3,1826.2,47.87214196]
[1743456209584,1.10350479,1826.3,1826.2,44.66434196]
[1743456209791,1.10350479,1826.3,1826.2,47.87214196]
[1743456210382,0.00820479,1826.3,1826.2,47.87214196]
[1743456210585,3.2078,1827.4,1826.2,55.49809237]
[1743456210880,2.8745,1827.3,1827.2,1.09476]
[1743456211282,2.8745,1827.3,1827.2,41.89476]
[1743456211685,2.8745,1827.3,1827.2,43.25366]
[1743456213689,2.8745,1827.3,1827.2,43.68361262]
[1743456213986,0.00820479,1827.4,1827.3,1.0947]
[1743456214287,0.00820479,1827.4,1827.3,2.5448]
[1743456214593,1.50060479,1827.4,1827.3,43.3448]
[1743456215198,0.00820479,1827.4,1827.3,43.3448]
[1743456217494,0.00820479,1827.4,1827.3,46.5526]
[1743456219295,0.00820479,1827.4,1827.3,43.3448]
[1743456219590,0.00820479,1827.4,1827.3,46.5526]
[1743456225097,2.9002,1828.0,1827.9,1.09434]
[1743456225405,2.25228807,1828.0,1827.9,4.30214]
[1743456225608,1.09407,1828.4,1828.3,1.09409]
[1743456225788,1.4531,1828.4,1828.3,41.89409]
[1743456226503,5.1111,1828.4,1828.3,41.89409]
[1743456226998,5.1121,1828.4,1828.3,41.89409]
[1743456227597,1.4531,1828.4,1828.3,41.89409]
[1743456228311,1.4531,1828.4,1828.3,45.10189]
[1743456229895,3.2078,1828.9,1828.3,47.17227072]
[1743456230103,6.5716,1828.8,1828.7,1.09382]
[1743456230794,2.9196,1828.8,1828.7,41.89382]
[1743456231002,6.5716,1828.8,1828.7,41.89382]
[1743456231396,2.9196,1828.8,1828.7,41.89382]
[1743456231597,0.701,1828.8,1828.7,43.34742]
[1743456231902,60.2272,1829.0,1828.9,1.09375]
[1743456232097,5.756,1829.0,1828.9,1.09375]
[1743456232599,5.756,1829.0,1828.9,41.89375]
[1743456234808,0.7265,1829.2,1829.1,1.09363]
[1743456235016,1.4481,1829.2,1829.1,1.09363]
[1743456235497,1.4481,1829.2,1829.1,41.89363]
[1743456236213,2.9158,1829.2,1829.1,41.89363]
[1743456237715,2.1893,1829.2,1829.1,41.89363]
[1743456238415,3.2078,1829.3,1829.2,1.09357]
[1743456238615,3.2078,1829.3,1829.2,2.56367]
[1743456238813,3.2078,1829.3,1829.2,1.4701]
[1743456239018,4.6274,1829.3,1829.2,42.2701]
[1743456239512,4.6274,1829.3,1829.2,43.36367]
[1743456239713,4.6274,1829.3,1829.2,42.2701]
[1743456239910,5.72091,1829.3,1829.2,42.2701]
[1743456242112,5.72091,1829.3,1829.2,43.36367]
[1743456242311,1.79168,1829.4,1829.2,43.36367]
[1743456242511,1.79168,1829.4,1829.3,1.4557]
[1743456242906,3.28638,1829.4,1829.3,1.4557]
[1743456243110,3.28638,1829.4,1829.3,42.2557]
[1743456243519,0.6982,1829.4,1829.3,43.34921]
[1743456244027,1.79165,1829.4,1829.3,43.34921]
[1743456244429,0.6982,1829.4,1829.3,43.34921]
[1743456244629,1.79165,1829.4,1829.3,43.34921]
[1743456245919,1.79165,1829.4,1829.3,42.2557]
[1743456247029,1.79165,1829.4,1829.3,43.34921]
[1743456248927,1.09345,1829.4,1829.3,43.34921]
[1743456250834,1.09345,1829.4,1829.3,40.8]
[1743456251232,4.70445,1829.4,1829.3,40.8]
[1743456251432,2.52495,1829.4,1829.3,40.8]
[1743456252534,2.52495,1829.4,1829.3,42.2956]
[1743456253328,2.52495,1829.4,1829.3,40.8]
[1743456263939,1.09357,1829.2,1829.1,0.00820479]
[1743456264141,4.70357,1829.2,1829.1,0.00820479]
[1743456264535,6.82667,1829.2,1829.1,0.00820479]
[1743456264737,6.82667,1829.2,1829.1,40.80820479]
[1743456264942,1.09392,1828.6,1828.5,1.09394]
[1743456265131,1.09392,1828.6,1828.5,2.57731441]
[1743456265339,1.09392,1828.6,1828.5,1.48337441]
[1743456265542,1.09392,1828.6,1828.5,1.48285637]
[1743456265736,1.09392,1828.6,1828.5,2.1477694]
[1743456265939,1.78512,1828.6,1828.5,42.9477694]
[1743456266442,3.19992,1828.6,1828.5,43.60051303]
[1743456266844,3.19992,1828.6,1828.5,42.86351303]
[1743456267337,3.19992,1828.6,1828.5,42.1986]
[1743456267643,6.40772,1828.6,1828.5,40.8]
[1743456280648,6.40772,1828.6,1828.5,42.2412]
[1743456282046,1.10207479,1828.7,1828.5,42.2412]
[1743456282247,1.10207479,1828.7,1828.6,1.4412]
[1743456282745,4.71307479,1828.7,1828.6,42.2412]
[1743456289658,6.83317479,1828.7,1828.6,42.2412]
[1743456292563,10.04097479,1828.7,1828.6,42.2412]
[1743456294563,6.83317479,1828.7,1828.6,42.2412]
[1743456294763,10.04097479,1828.7,1828.6,42.2412]
[1743456300565,4.30987479,1828.7,1828.6,42.2412]
[1743456300755,7.92087479,1828.7,1828.6,42.2412]
[1743456301164,9.38777479,1828.7,1828.6,42.2412]
[1743456307367,4.30987479,1828.7,1828.6,42.2412]
[1743456307566,7.92087479,1828.7,1828.6,42.2412]
[1743456313771,9.40747479,1828.7,1828.6,42.2412]
[1743456326788,1.09398,1828.5,1828.4,0.00820479]
[1743456326977,4.30178,1828.5,1828.4,0.00820479]
[1743456327179,5.74988,1828.5,1828.4,0.00820479]
[1743456327786,5.74988,1828.5,1828.4,40.80820479]
[1743456330085,5.74988,1828.5,1828.4,42.21760479]
[1743456339691,5.74988,1828.5,1828.4,40.80820479]
[1743456339895,1.09416,1828.2,1828.1,1.4017]
[1743456340096,7.91096,1828.2,1828.1,1.4017]
[1743456340690,10.05726,1828.2,1828.1,1.4017]
[1743456340995,1.09428,1828.0,1827.9,0.7146]
[1743456341195,4.30208,1828.0,1827.9,0.7146]
[1743456341495,4.30208,1828.0,1827.9,41.5146]
[1743456341703,5.02878,1828.0,1827.9,41.5146]
[1743456343697,5.02878,1828.0,1827.9,40.8]
[1743456344401,5.02878,1828.0,1827.9,42.1911]
[1743456347003,5.02878,1828.0,1827.9,40.8]
[1743456347805,1.09434,1827.9,1827.8,0.00820479]
[1743456348001,6.75944,1827.9,1827.8,0.00820479]
[1743456348805,6.75944,1827.9,1827.8,40.80000479]
[1743456349108,1.09464,1827.4,1827.3,0.6789]
[1743456349310,4.70464,1827.4,1827.3,2.1654]
[1743456349702,6.06404,1827.4,1827.3,2.1654]
[1743456349903,6.06404,1827.4,1827.3,42.9654]
[1743456356417,6.06404,1827.4,1827.3,42.2865]
[1743456356600,6.06404,1827.4,1827.3,40.8]
[1743456368918,2.45404,1827.4,1827.3,40.8]
[1743456369123,6.06404,1827.4,1827.3,40.8]
[1743456369326,1.09464,1827.4,1827.3,42.1947]
[1743456369516,4.70464,1827.4,1827.3,43.5937]
[1743456369917,6.12504,1827.4,1827.3,43.5937]
[1743456370218,1.09464,1827.4,1827.3,43.5937]
[1743456370422,4.70464,1827.4,1827.3,43.5937]
[1743456370619,3.21600479,1827.5,1827.3,43.5937]
[1743456370922,3.61,1827.4,1827.3,1.399]
[1743456371328,3.61,1827.4,1827.3,42.199]
[1743456371516,4.70464,1827.4,1827.3,42.199]
[1743456371711,3.61,1827.4,1827.3,42.199]
[1743456372019,3.61,1827.4,1827.3,43.2937]
[1743456372223,0.00820479,1827.5,1827.4,1.09464]
[1743456372723,0.00820479,1827.5,1827.4,2.5]
[1743456372724,1.10278479,1827.5,1827.4,2.5]
[1743456373021,1.10278479,1827.5,1827.4,40.8]
[1743456375725,1.10278479,1827.5,1827.4,41.89464]
[1743456376828,1.10278479,1827.5,1827.4,40.8]
[1743456377128,1.10278479,1827.5,1827.4,41.89464]
[1743456378327,0.00820479,1827.5,1827.4,41.89464]
[1743456381628,1.10278479,1827.5,1827.4,41.89464]
[1743456381826,0.00820479,1827.5,1827.4,41.89464]
[1743456387138,0.00820479,1827.5,1827.4,43.26924]
[1743456392145,1.10278479,1827.5,1827.4,43.26924]
[1743456392330,0.00820479,1827.5,1827.4,43.26924]
[1743456392638,1.10278479,1827.5,1827.4,43.26924]
[1743456393040,3.16568479,1827.5,1827.4,43.26924]
[1743456393243,3.86288479,1827.5,1827.4,43.26924]
[1743456395240,3.86288479,1827.5,1827.4,41.89464]
[1743456396639,3.86288479,1827.5,1827.4,40.8]
[1743456400447,6.36288479,1827.5,1827.4,40.8]
[1743456403045,6.46071494,1827.5,1827.4,40.8]
[1743456403649,6.46071525,1827.5,1827.4,40.8]
[1743456404146,6.4607161,1827.5,1827.4,40.8]
[1743456405148,6.46071188,1827.5,1827.4,40.8]
[1743456406748,6.46071101,1827.5,1827.4,40.8]
[1743456407753,3.96071101,1827.5,1827.4,40.8]
[1743456408553,3.96068104,1827.5,1827.4,40.8]
[1743456409546,7.16848104,1827.5,1827.4,40.8]
[1743456410155,7.16843203,1827.5,1827.4,40.8]
[1743456411050,0.00820479,1827.5,1827.4,41.89464]
[1743456411254,3.608,1827.8,1827.6,1.09448]
[1743456411454,3.608,1827.8,1827.7,3.93283]
[1743456411756,3.608,1827.9,1827.8,1.0944]
[1743456412355,3.608,1827.9,1827.8,41.8944]
[1743456412957,0.00820479,1828.0,1827.9,1.09434]
[1743456413157,4.71050479,1828.0,1827.8,41.89438]
[1743456414451,4.71050479,1828.0,1827.8,42.33953308]
[1743456414652,1.09434,1827.9,1827.8,42.33953308]
[1743456416654,1.09434,1827.9,1827.8,41.89438]
[1743456417254,1.09434,1827.9,1827.8,42.34001604]
[1743456419653,3.61620479,1828.0,1827.8,42.34001604]
[1743456419859,4.71051479,1828.0,1827.9,1.09434]
[1743456420265,4.71051479,1828.0,1827.9,41.89434]
[1743456425567,1.10251479,1828.0,1827.9,41.89434]
[1743456425862,1.09406,1828.5,1828.4,1.09401]
[1743456426056,4.70006,1828.5,1828.4,1.09401]
[1743456426461,4.70006,1828.5,1828.4,41.89401]
[1743456426961,4.70006,1828.5,1828.4,42.2442]
[1743456427159,6.12626,1828.5,1828.4,42.2442]
[1743456427562,4.70006,1828.5,1828.4,42.2442]
[1743456428067,6.12626,1828.5,1828.4,42.2442]
[1743456432771,6.12626,1828.5,1828.4,40.8]
[1743456436273,6.86246,1828.5,1828.4,40.8]
[1743456438072,3.25646,1828.5,1828.4,40.8]
[1743456438280,3.21600479,1828.6,1828.4,43.3]
[1743456438471,0.00820479,1828.6,1828.5,4.30178]
[1743456438778,3.604,1829.0,1828.9,1.09375]
[1743456438983,3.604,1829.0,1828.9,41.89375]
[1743456439475,4.69769,1829.0,1828.9,40.8]
[1743456439679,6.84189,1829.0,1828.9,40.8]
[1743456439979,7.57299,1829.0,1828.9,40.8]
[1743456446983,7.57299,1829.0,1828.3,0.00820479]
[1743456446984,1.09404,1828.4,1828.3,0.00820479]
[1743456447279,7.90584,1828.4,1828.3,0.00820479]
[1743456447469,6.8118,1828.4,1827.9,0.7279]
[1743456447673,1.09422,1828.1,1828.0,1.4245]
[1743456447873,4.69722,1828.1,1828.0,42.2245]
[1743456448081,6.08292,1828.1,1828.0,40.8]
[1743456448679,1.09422,1828.1,1828.0,40.8]
[1743456449082,4.69722,1828.1,1828.0,40.8]
[1743456451178,4.69722,1828.1,1828.0,41.50205664]
[1743456455180,4.69722,1828.1,1828.0,42.87035664]
[1743456458697,4.69722,1828.1,1828.0,42.1683]
[1743456463903,1.09422,1828.1,1828.0,43.26258]
[1743456464203,1.09422,1828.1,1828.0,43.26253]
[1743456464402,3.61220479,1828.2,1828.0,43.26253]
[1743456464602,4.70636479,1828.2,1828.1,1.4978]
[1743456465106,4.70636479,1828.2,1828.1,42.2978]
[1743456465402,5.47038,1828.4,1828.1,42.2978]
[1743456465403,4.69809,1828.4,1828.3,1.09408]
[1743456465605,4.69809,1828.4,1828.3,4.30188]
[1743456466101,4.69809,1828.4,1828.3,46.1392]
[1743456466306,6.14949,1828.4,1828.3,46.1392]
[1743456467703,6.14949,1828.4,1828.3,42.9314]
[1743456473215,6.14949,1828.4,1828.3,43.6340709]
[1743456475411,6.14949,1828.4,1828.3,42.9310709]
[1743456477517,9.35729,1828.4,1828.3,41.5026709]
[1743456478212,9.35729,1828.4,1828.3,40.8]
[1743456481019,1.09428,1828.0,1827.9,0.00820479]
[1743456481317,4.69728,1828.0,1827.9,0.70308319]
[1743456481820,4.69728,1828.0,1827.9,0.00820479]
[1743456482016,4.69728,1828.0,1827.9,40.80820479]
[1743456482217,6.07438,1828.0,1827.9,40.80820479]
[1743456483724,2.47138,1828.0,1827.9,40.80820479]
[1743456483921,4.30178,1828.6,1828.1,2.73544]
[1743456484216,4.30153,1829.0,1828.7,1.09386]
[1743456484518,6.8108,1829.0,1828.9,1.09375]
[1743456484918,6.8108,1829.0,1828.9,1.90918969]
[1743456485124,6.8108,1829.0,1828.9,42.3061405]
[1743456485328,7.90449,1829.0,1828.9,42.3061405]
[1743456485516,7.90449,1829.0,1828.9,44.7850905]
[1743456486013,7.90449,1829.0,1828.9,43.6913405]
[1743456486214,4.69669,1829.0,1828.9,43.6913405]
[1743456488324,4.69669,1829.0,1828.9,42.87590081]
[1743456489723,4.69669,1829.0,1828.9,43.96965081]
[1743456491027,4.69669,1829.0,1828.9,43.27895]
[1743456496027,4.69669,1829.0,1828.9,40.8]
[1743456496225,6.13329,1829.0,1828.9,40.8]
[1743456496430,7.58699,1829.0,1828.9,40.8]
[1743456504935,1.09392,1828.6,1828.5,1.4083]
[1743456505149,4.69592,1828.6,1828.5,1.4083]
[1743456505941,4.69592,1828.6,1828.5,42.2083]
[1743456510549,4.69592,1828.6,1828.5,40.8]
[1743456510845,9.35392,1828.6,1828.5,40.8]
[1743456511050,11.85392,1828.6,1828.5,40.8]
[1743456514348,9.35392,1828.6,1828.5,40.8]
[1743456519452,11.85392,1828.6,1828.5,40.8]
[1743456520646,69.322,1828.6,1827.9,3.21600479]
[1743456520848,2.73705,1827.2,1826.8,0.6861]
[1743456521049,1.09494,1826.9,1826.8,2.1204]
[1743456521860,2.57684,1826.9,1826.8,42.9204]
[1743456522354,2.57684,1826.9,1826.8,42.2343]
[1743456523855,2.57684,1826.9,1826.8,43.6256]
[1743456524756,2.57684,1826.9,1826.8,42.2343]
[1743456524960,2.57684,1826.9,1826.8,40.8]
[1743456526947,1.095,1826.8,1826.7,0.00820479]
[1743456527149,9.3152,1826.8,1826.7,4.79e-06]
[1743456527849,9.3152,1826.8,1826.7,40.80000479]
[1743456528256,1.09518,1826.5,1826.4,1.4697]
[1743456528457,7.92398,1826.5,1826.4,2.904]
[1743456529356,7.92398,1826.5,1826.4,43.704]
[1743456540959,7.92398,1826.5,1826.4,40.8]
[1743456541664,9.39728,1826.5,1826.4,42.2253]
[1743456541865,9.38228,1826.5,1826.4,42.2253]
[1743456543659,5.77628,1826.5,1826.4,42.2253]
[1743456543865,9.38228,1826.5,1826.4,42.2253]
[1743456544666,7.90898,1826.5,1826.4,42.2253]
[1743456544861,7.90898,1826.5,1826.4,42.9454]
[1743456545969,4.30298,1826.5,1826.4,42.9454]
[1743456546167,7.90898,1826.5,1826.4,42.9454]
[1743456546674,4.30298,1826.5,1826.4,42.9454]
[1743456546865,7.90898,1826.5,1826.4,42.9454]
[1743456547066,4.30298,1826.5,1826.4,42.9454]
[1743456547265,7.90898,1826.5,1826.4,42.9454]
[1743456547565,4.30298,1826.5,1826.4,42.9454]
[1743456547770,7.90898,1826.5,1826.4,42.9454]
[1743456547968,4.30298,1826.5,1826.4,42.9454]
[1743456548171,7.90898,1826.5,1826.4,42.9454]
[1743456549166,4.30298,1826.5,1826.4,43.73392022]
[1743456549364,7.90898,1826.5,1826.4,43.73391696]
[1743456549564,7.90898,1826.5,1826.4,42.9454]
[1743456549964,7.90898,1826.5,1826.4,43.73391774]
[1743456550170,7.90898,1826.5,1826.4,42.9454]
[1743456550369,7.90898,1826.5,1826.4,45.00184101]
[1743456550572,7.90898,1826.5,1826.4,44.41944782]
[1743456551169,7.90898,1826.5,1826.4,44.40951109]
[1743456554377,7.90898,1826.5,1826.4,45.66087582]
[1743456554579,7.90898,1826.5,1826.4,43.62850897]
[1743456554877,7.90898,1826.5,1826.4,44.40137923]
[1743456555075,4.30298,1826.5,1826.4,44.40137923]
[1743456555277,7.90898,1826.5,1826.4,44.40137923]
[1743456555576,7.90898,1826.5,1826.4,45.63849018]
[1743456557480,7.90898,1826.5,1826.4,45.63946592]
[1743456558083,7.90898,1826.5,1826.4,47.07376592]